[Event "Régional Jeunes Occitanie 2024"]
[Site "L'Isle Jourdain, France"]
[Date "2024.02.23"]
[Round "6.5"]
[White "WITTMANN, Paul"]
[Black "LAVAL, Nolan"]
[Result "0-1"]
[TimeControl "1h30 + 30s/cps"]
[WhiteElo "1536"]
[BlackElo "1454"]

1. e4 {[%clk 01:30:07]} {[%emt 00:00:52]} c5 {[%clk 01:30:49]} {[%emt
00:00:12]} 2. Nf3 {[%clk 01:30:13]} {[%emt 00:00:24]} d6 {[%clk 01:31:09]}
{[%emt 00:00:11]} 3. d4 {[%clk 01:30:11]} {[%emt 00:00:31]} cxd4 {[%clk
01:31:34]} {[%emt 00:00:05]} 4. Nxd4 {[%clk 01:30:23]} {[%emt 00:00:18]} Nf6
{[%clk 01:31:58]} {[%emt 00:00:07]} 5. Nc3 {[%clk 01:29:54]} {[%emt 00:00:59]}
g6 {[%clk 01:31:55]} {[%emt 00:00:33]} 6. Bc4 {[%clk 01:26:50]} {[%emt
00:20:08]} Bg7 {[%clk 01:30:57]} 7. f3 {[%clk 01:25:42]} Nc6 {[%clk 01:29:46]}
8. Be3 {[%clk 01:25:41]} Bd7 {[%clk 01:28:38]} 9. Qd2 {[%clk 01:24:39]} a6
{[%clk 01:27:54]} 10. O-O-O {[%clk 01:23:47]} O-O {[%clk 01:27:20]} 11. Nxc6
{[%clk 01:21:37]} Bxc6 {[%clk 01:27:12]} 12. Bh6 {[%clk 01:21:59]} b5 {[%clk
01:26:52]} 13. Bxg7 {[%clk 01:21:08]} {[%emt 00:01:11]} Kxg7 {[%clk 01:27:12]}
{[%emt 00:00:11]} 14. Bb3 {[%clk 01:21:21]} {[%emt 00:00:17]} b4 {[%clk
01:26:28]} {[%emt 00:01:14]} 15. Nd5 {[%clk 01:19:49]} {[%emt 00:02:03]} Bxd5
{[%clk 01:25:37]} {[%emt 00:01:20]} 16. Bxd5 {[%clk 01:19:58]} {[%emt
00:00:21]} Nxd5 {[%clk 01:25:30]} {[%emt 00:00:37]} 17. Qxd5 {[%clk 01:20:15]}
{[%emt 00:00:13]} Qb6 {[%clk 01:23:06]} {[%emt 00:02:53]} 18. g4 {[%clk
01:15:11]} {[%emt 00:06:29]} Qe3+ {[%clk 01:18:04]} {[%emt 00:04:39]} 19. Kb1
{[%clk 01:10:21]} {[%emt 00:13:22]} Qxf3 {[%clk 01:16:43]} 20. Rhf1 {[%clk
01:07:05]} Qxg4 {[%clk 01:16:12]} 21. Rd2 {[%clk 01:07:25]} a5 {[%clk
01:11:38]} {[%emt 00:19:23]} 22. e5 {[%clk 01:04:04]} dxe5 {[%clk 01:03:27]} 23.
Qxe5+ {[%clk 01:02:37]} Kg8 {[%clk 01:03:36]} 24. Qxe7 {[%clk 01:01:50]} {[%emt
00:00:34]} Qe6 {[%clk 01:02:03]} {[%emt 00:02:02]} 25. Qc7 {[%clk 00:56:56]}
{[%emt 00:05:25]} Rfe8 {[%clk 00:54:59]} {[%emt 00:17:27]} 26. Rd7 {[%clk
00:44:50]} {[%emt 00:02:44]} Rac8 {[%clk 00:45:00]} {[%emt 00:10:38]} 27. Qb7
{[%clk 00:40:43]} {[%emt 00:04:27]} Qc4 {[%clk 00:38:59]} {[%emt 00:06:30]} 28.
Rdd1 {[%clk 00:32:24]} {[%emt 00:16:51]} Qxc2+ {[%clk 00:37:12]} 29. Ka1 {[%clk
00:32:46]} Rc7 {[%clk 00:34:18]} 30. Qf3 {[%clk 00:31:33]} Rec8 {[%clk
00:32:59]} {[%emt 00:01:19]} 31. Qf4 {[%clk 00:30:19]} {[%emt 00:01:44]} a4
{[%clk 00:31:23]} {[%emt 00:02:07]} 32. Rb1 {[%clk 00:28:54]} {[%emt 00:01:55]}
Qc4 {[%clk 00:24:50]} {[%emt 00:07:01]} 33. Qxc4 {[%clk 00:22:06]} {[%emt
00:07:21]} Rxc4 {[%clk 00:25:10]} {[%emt 00:00:09]} 34. b3 {[%clk 00:22:28]}
{[%emt 00:00:08]} axb3 {[%clk 00:24:32]} {[%emt 00:01:07]} 35. axb3 {[%clk
00:22:53]} {[%emt 00:00:06]} Rc2 {[%clk 00:23:36]} {[%emt 00:01:26]} 36. Rb2
{[%clk 00:23:14]} {[%emt 00:00:09]} f5 {[%clk 00:22:28]} {[%emt 00:01:37]} 37.
Rf4 {[%clk 00:21:56]} {[%emt 00:01:49]} Rc1+ {[%clk 00:21:23]} {[%emt
00:01:36]} 38. Rb1 {[%clk 00:22:19]} {[%emt 00:00:07]} Rxb1+ {[%clk 00:21:45]}
{[%emt 00:00:07]} 39. Kxb1 {[%clk 00:22:38]} {[%emt 00:00:12]} Rb8 {[%clk
00:22:02]} {[%emt 00:00:13]} 40. Kc2 {[%clk 00:21:43]} {[%emt 00:01:26]} Kf7
{[%clk 00:21:28]} {[%emt 00:01:03]} 41. Kd3 {[%clk 00:21:39]} {[%emt 00:00:35]}
Ke6 {[%clk 00:21:46]} {[%emt 00:00:11]} 42. Rc4 {[%clk 00:21:18]} {[%emt
00:00:51]} Kf6 {[%clk 00:17:21]} {[%emt 00:04:55]} 43. Rc7 {[%clk 00:13:35]}
{[%emt 00:08:13]} h5 {[%clk 00:15:56]} {[%emt 00:01:54]} 44. h4 {[%clk
00:08:28]} {[%emt 00:05:38]} Rb6 {[%clk 00:15:03]} {[%emt 00:01:23]} 45. Kc4
{[%clk 00:06:54]} {[%emt 00:02:04]} f4 {[%clk 00:14:00]} {[%emt 00:01:33]} 46.
Kc5 {[%clk 00:05:17]} {[%emt 00:02:07]} Rb8 {[%clk 00:13:57]} {[%emt 00:00:33]}
47. Kd4 {[%emt 00:00:15]} Kf5 {[%clk 00:13:29]} {[%emt 00:00:57]} 48. Rf7+
{[%clk 00:05:05]} {[%emt 00:00:58]} Kg4 {[%clk 00:13:46]} {[%emt 00:00:13]} 49.
Ke4 {[%emt 00:01:04]} Re8+ {[%clk 00:14:00]} 50. Kd3 {[%clk 00:05:06]} {[%emt
00:00:11]} Re3+ {[%clk 00:13:49]} {[%emt 00:00:40]} 51. Kc4 {[%clk 00:04:11]}
{[%emt 00:01:26]} f3 {[%clk 00:13:59]} {[%emt 00:00:20]} 52. Rf6 {[%clk
00:03:29]} {[%emt 00:01:12]} Kg3 {[%clk 00:12:43]} {[%emt 00:01:46]} 53. Rxg6+
{[%clk 00:03:36]} {[%emt 00:00:24]} Kf2 {[%clk 00:12:30]} {[%emt 00:00:42]} 54.
Rg5 {[%clk 00:03:16]} {[%emt 00:00:50]} Re4+ {[%clk 00:11:23]} {[%emt
00:01:37]} 55. Kd3 {[%clk 00:03:19]} Rxh4 {[%clk 00:11:40]} {[%emt 00:00:39]}
56. Rf5 {[%clk 00:03:37]} Rh1 {[%clk 00:10:05]} {[%emt 00:02:16]} 57. Rf4
{[%clk 00:02:57]} Kg3 {[%clk 00:10:05]} 58. Rf5 {[%clk 00:02:57]} h4 {[%clk
00:10:05]} 59. Ke3 {[%clk 00:02:57]} Re1+ {[%clk 00:10:05]} 0-1

[Event "Régional Jeunes Occitanie 2024"]
[Site "L'Isle Jourdain, France"]
[Date "2024.02.23"]
[Round "6.3"]
[White "DUCES-AKHVERDOFF, Gabriel"]
[Black "PERROUIN, Alexian"]
[Result "1-0"]
[TimeControl "1h30 + 30s/cps"]
[WhiteElo "1797"]
[BlackElo "1829"]

1. d4 {[%clk 01:30:57]} {[%emt 00:00:01]} Nf6 {[%clk 01:30:56]} {[%emt
00:00:05]} 2. c4 {[%clk 01:30:58]} {[%emt 00:00:29]} g6 {[%clk 01:31:22]}
{[%emt 00:00:04]} 3. Nc3 {[%clk 01:31:23]} {[%emt 00:00:05]} d6 {[%clk
01:31:43]} {[%emt 00:00:09]} 4. e4 {[%clk 01:31:42]} {[%emt 00:00:11]} Bg7
{[%clk 01:31:44]} {[%emt 00:00:30]} 5. Be2 {[%clk 01:32:05]} {[%emt 00:00:06]}
Nbd7 {[%clk 01:32:07]} {[%emt 00:00:07]} 6. Nf3 {[%clk 01:32:29]} {[%emt
00:00:05]} e5 {[%clk 01:31:47]} {[%emt 00:00:50]} 7. O-O {[%clk 01:32:34]}
{[%emt 00:00:24]} O-O {[%clk 01:32:15]} {[%emt 00:00:04]} 8. Qc2 {[%clk
01:32:57]} {[%emt 00:00:06]} Re8 {[%clk 01:31:40]} {[%emt 00:01:05]} 9. d5
{[%clk 01:22:58]} {[%emt 00:20:23]} Nh5 {[%clk 01:28:48]} 10. Bg5 {[%clk
01:18:26]} Bf6 {[%clk 01:27:18]} {[%emt 00:00:31]} 11. Bd2 {[%clk 01:16:36]}
{[%emt 00:02:19]} Nf4 {[%clk 01:14:18]} {[%emt 00:13:58]} 12. Rfd1 {[%clk
01:07:05]} {[%emt 00:18:01]} g5 {[%clk 01:09:30]} 13. Ne1 {[%clk 01:01:34]}
{[%emt 00:02:52]} Nf8 {[%clk 01:03:14]} {[%emt 00:16:31]} 14. Nd3 {[%clk
00:58:46]} N8g6 {[%clk 01:01:57]} 15. b4 {[%clk 00:55:41]} Qd7 {[%clk
00:58:00]} {[%emt 00:03:23]} 16. Bf1 {[%clk 00:50:15]} {[%emt 00:05:55]} Qg4
{[%clk 00:53:48]} {[%emt 00:16:11]} 17. f3 {[%clk 00:47:52]} Qh5 {[%clk
00:50:49]} 18. Ne2 {[%clk 00:41:44]} {[%emt 00:01:31]} g4 {[%clk 00:30:15]}
{[%emt 00:21:05]} 19. Ng3 {[%clk 00:40:14]} {[%emt 00:01:59]} Qg5 {[%clk
00:29:45]} {[%emt 00:01:01]} 20. Ne1 {[%clk 00:38:03]} {[%emt 00:15:34]} h5
{[%clk 00:26:34]} 21. c5 {[%clk 00:29:50]} Nh4 {[%clk 00:22:07]} {[%emt
00:04:28]} 22. Kh1 {[%clk 00:27:22]} {[%emt 00:02:57]} gxf3 {[%clk 00:20:58]}
{[%emt 00:03:04]} 23. gxf3 {[%clk 00:23:54]} {[%emt 00:02:34]} Nhg6 {[%clk
00:18:30]} {[%emt 00:02:59]} 24. Nd3 {[%clk 00:22:08]} {[%emt 00:02:15]} h4
{[%clk 00:17:12]} {[%emt 00:01:48]} 25. Nf5 {[%clk 00:18:51]} {[%emt 00:03:48]}
Bxf5 {[%clk 00:09:27]} {[%emt 00:08:15]} 26. exf5 {[%clk 00:19:10]} {[%emt
00:00:10]} Qxf5 {[%clk 00:09:45]} {[%emt 00:00:12]} 27. Rac1 {[%clk 00:15:11]}
{[%emt 00:04:29]} Qh5 {[%clk 00:08:17]} {[%emt 00:01:58]} 28. Nxf4 {[%clk
00:11:17]} {[%emt 00:04:24]} Nxf4 {[%clk 00:08:03]} {[%emt 00:00:45]} 29. Qe4
{[%clk 00:10:19]} {[%emt 00:01:27]} Bg5 {[%clk 00:07:02]} {[%emt 00:01:31]} 30.
Bb5 {[%clk 00:09:54]} {[%emt 00:00:55]} Re7 {[%clk 00:06:20]} {[%emt 00:01:12]}
31. Rg1 {[%clk 00:08:47]} {[%emt 00:01:36]} Kh8 {[%clk 00:05:21]} {[%emt
00:01:29]} 32. Rg4 {[%clk 00:07:27]} {[%emt 00:01:49]} Rg8 {[%clk 00:03:33]}
{[%emt 00:02:19]} 33. Rcg1 {[%clk 00:07:09]} {[%emt 00:00:48]} Rg6 {[%clk
00:02:31]} {[%emt 00:01:33]} 34. Ba4 {[%clk 00:04:47]} {[%emt 00:02:51]} Nh3
{[%clk 00:02:22]} {[%emt 00:00:39]} 35. R1g2 {[%clk 00:04:26]} {[%emt
00:00:51]} Bxd2 {[%clk 00:02:35]} {[%emt 00:00:17]} 36. Rxh4 {[%clk 00:04:40]}
{[%emt 00:00:16]} Rxg2 {[%clk 00:00:46]} {[%emt 00:02:20]} 37. Rxh5+ {[%clk
00:04:57]} {[%emt 00:00:12]} Kg8 {[%clk 00:01:05]} {[%emt 00:00:10]} 38. Rxh3
{[%clk 00:04:40]} {[%emt 00:00:47]} 1-0

[Event "Régional Jeunes Occitanie 2024"]
[Site "L'Isle Jourdain, France"]
[Date "2024.02.23"]
[Round "6.8"]
[White "BAUER, Pierre"]
[Black "URIBE, Tunweya"]
[Result "1-0"]
[TimeControl "1h30 + 30s/cps"]
[WhiteElo "1765"]
[BlackElo "1291"]

1. d4 {[%clk 01:30:31]} {[%emt 00:00:28]} Nf6 {[%clk 01:30:52]} {[%emt
00:00:09]} 2. c4 {[%clk 01:30:50]} {[%emt 00:00:10]} e6 {[%clk 01:31:18]}
{[%emt 00:00:05]} 3. Nc3 {[%clk 01:31:02]} {[%emt 00:00:17]} d5 {[%clk
01:31:44]} {[%emt 00:00:05]} 4. cxd5 {[%clk 01:30:55]} {[%emt 00:00:37]} exd5
{[%clk 01:32:09]} {[%emt 00:00:05]} 5. Bg5 {[%clk 01:30:59]} {[%emt 00:00:24]}
c6 {[%clk 01:32:33]} {[%emt 00:00:07]} 6. e3 {[%clk 01:31:05]} {[%emt
00:00:24]} h6 {[%clk 01:32:57]} {[%emt 00:00:07]} 7. Bh4 {[%clk 01:31:00]}
{[%emt 00:00:33]} Be7 {[%clk 01:33:20]} {[%emt 00:00:09]} 8. Bd3 {[%clk
01:31:00]} {[%emt 00:00:29]} O-O {[%clk 01:33:38]} {[%emt 00:00:12]} 9. Nge2
{[%clk 01:30:40]} {[%emt 00:00:49]} Nbd7 {[%clk 01:34:00]} {[%emt 00:00:09]} 10.
O-O {[%clk 01:30:44]} {[%emt 00:00:25]} Re8 {[%clk 01:34:15]} {[%emt 00:00:15]}
11. f3 {[%clk 01:29:55]} {[%emt 00:01:20]} Nh5 {[%clk 01:33:38]} {[%emt
00:17:21]} 12. Bf2 {[%clk 01:29:01]} Nf8 {[%clk 01:32:55]} 13. e4 {[%clk
01:25:16]} dxe4 {[%clk 01:31:47]} 14. fxe4 {[%clk 01:25:07]} Ne6 {[%clk
01:31:38]} 15. Bc2 {[%clk 01:18:29]} {[%emt 00:00:43]} Nf6 {[%clk 01:27:27]}
{[%emt 00:04:41]} 16. Ng3 {[%clk 01:15:49]} {[%emt 00:03:10]} c5 {[%clk
01:23:08]} {[%emt 00:08:14]} 17. d5 {[%clk 01:13:20]} Nc7 {[%clk 01:22:43]}
{[%emt 00:00:28]} 18. Qd3 {[%clk 01:11:07]} {[%emt 00:02:43]} g6 {[%clk
01:20:21]} {[%emt 00:14:49]} 19. Rad1 {[%clk 01:08:59]} Qd6 {[%clk 01:19:13]}
20. Be3 {[%clk 01:07:42]} Bf8 {[%clk 01:14:11]} 21. Bf4 {[%clk 01:07:25]}
{[%emt 00:00:25]} Qd8 {[%clk 01:13:49]} {[%emt 00:00:51]} 22. Bxc7 {[%clk
01:07:26]} {[%emt 00:00:30]} Qxc7 {[%clk 01:14:10]} {[%emt 00:00:09]} 23. Rxf6
{[%clk 01:07:01]} {[%emt 00:00:55]} Bg7 {[%clk 01:14:06]} {[%emt 00:00:34]} 24.
Rff1 {[%clk 01:06:29]} {[%emt 00:16:00]} Bd4+ {[%clk 01:12:48]} 25. Kh1 {[%clk
01:06:41]} Bd7 {[%clk 01:12:09]} 26. Qc4 {[%clk 01:02:50]} Qe5 {[%clk
01:09:29]} 27. Qd3 {[%clk 00:56:09]} {[%emt 00:02:59]} Bg4 {[%clk 01:05:37]}
{[%emt 00:04:22]} 28. Rd2 {[%clk 00:54:27]} {[%emt 00:18:08]} Qg5 {[%clk
01:02:06]} 29. Bd1 {[%clk 00:45:35]} Be3 {[%clk 00:58:32]} {[%emt 00:01:32]} 30.
Rc2 {[%clk 00:45:22]} {[%emt 00:00:44]} Bxd1 {[%emt 00:11:06]} 31. Nxd1 {[%clk
00:42:36]} Bd4 {[%clk 00:56:09]} 32. Qd2 {[%clk 00:40:21]} Qh4 {[%clk
00:53:26]} {[%emt 00:01:31]} 33. Nc3 {[%clk 00:30:37]} {[%emt 00:10:15]} Re5
{[%clk 00:50:43]} {[%emt 00:16:03]} 34. Nce2 {[%clk 00:29:22]} Rg5 {[%clk
00:49:57]} 35. Nxd4 {[%clk 00:28:06]} cxd4 {[%clk 00:50:19]} 36. Rf4 {[%clk
00:27:46]} Rg4 {[%clk 00:50:18]} 37. Rxg4 {[%clk 00:28:00]} Qxg4 {[%clk
00:50:43]} 38. Qxd4 {[%clk 00:27:19]} Rd8 {[%clk 00:49:58]} 39. Rc1 {[%clk
00:25:54]} Qf4 {[%clk 00:49:32]} 40. Rf1 {[%clk 00:25:55]} Qb8 {[%clk
00:47:35]} {[%emt 00:01:59]} 41. e5 {[%clk 00:25:38]} {[%emt 00:00:47]} b6
{[%clk 00:47:31]} {[%emt 00:00:35]} 42. Qf4 {[%clk 00:23:04]} {[%emt 00:03:03]}
Qb7 {[%clk 00:46:56]} {[%emt 00:01:05]} 43. Ne4 {[%clk 00:23:03]} {[%emt
00:00:31]} h5 {[%clk 00:45:26]} {[%emt 00:02:29]} 44. Qg5 {[%clk 00:22:13]}
{[%emt 00:00:51]} Qb8 {[%clk 00:44:20]} {[%emt 00:01:37]} 45. e6 {[%clk
00:22:03]} {[%emt 00:00:40]} Kg7 {[%clk 00:43:18]} {[%emt 00:01:31]} 46. Rxf7+
{[%clk 00:22:19]} Kh8 {[%clk 00:43:18]} 47. Qf6+ 1-0

[Event "Régional Jeunes Occitanie 2024"]
[Site "L'Isle Jourdain, France"]
[Date "2024.02.23"]
[Round "6.2"]
[White "BEUCHER, Gauthier"]
[Black "CANFRAN, Joan"]
[Result "1-0"]
[TimeControl "1h30 + 30s/cps"]
[WhiteElo "1484"]
[BlackElo "1710"]

1. e4 {[%clk 01:30:56]} {[%emt 00:00:03]} g6 {[%clk 01:30:59]} {[%emt
00:00:02]} 2. d4 {[%clk 01:31:07]} {[%emt 00:00:18]} Bg7 {[%clk 01:31:21]}
{[%emt 00:00:07]} 3. Nc3 {[%clk 01:31:29]} {[%emt 00:00:08]} d6 {[%clk
01:31:43]} {[%emt 00:00:08]} 4. Be3 {[%clk 01:31:49]} {[%emt 00:00:10]} a6
{[%clk 01:32:06]} {[%emt 00:00:07]} 5. Qd2 {[%clk 01:31:44]} {[%emt 00:00:35]}
b5 {[%clk 01:32:22]} {[%emt 00:00:14]} 6. O-O-O {[%clk 01:29:22]} {[%emt
00:02:52]} Bb7 {[%clk 01:32:13]} {[%emt 00:00:40]} 7. f3 {[%clk 01:28:42]}
{[%emt 00:01:11]} Nd7 {[%clk 01:31:19]} {[%emt 00:18:09]} 8. h4 {[%clk
01:27:09]} h5 {[%clk 01:31:24]} 9. Nh3 {[%clk 01:26:27]} Ngf6 {[%clk 01:30:33]}
10. Ng5 {[%clk 01:24:17]} e6 {[%clk 01:29:21]} 11. a3 {[%clk 01:15:54]} {[%emt
00:01:30]} O-O {[%clk 01:17:01]} {[%emt 00:15:18]} 12. Be2 {[%clk 01:08:52]}
{[%emt 00:05:03]} Qe7 {[%clk 00:54:21]} {[%emt 00:32:20]} 13. g4 {[%clk
01:00:00]} {[%emt 00:00:12]} Rfd8 {[%clk 00:47:30]} {[%emt 00:07:20]} 14. gxh5
{[%clk 00:54:16]} {[%emt 00:17:57]} Nxh5 {[%clk 00:45:39]} 15. Rdg1 {[%clk
00:51:12]} c5 {[%clk 00:40:51]} 16. f4 {[%clk 00:40:32]} {[%emt 00:13:22]} cxd4
{[%clk 00:35:25]} {[%emt 00:03:16]} 17. Bxd4 {[%clk 00:39:49]} {[%emt
00:01:14]} e5 {[%clk 00:35:13]} {[%emt 00:00:41]} 18. Be3 {[%clk 00:39:16]}
{[%emt 00:01:04]} exf4 {[%clk 00:31:38]} {[%emt 00:04:05]} 19. Bxf4 {[%clk
00:39:13]} {[%emt 00:00:33]} Nxf4 {[%clk 00:30:08]} {[%emt 00:01:59]} 20. Qxf4
{[%clk 00:39:19]} {[%emt 00:00:24]} Be5 {[%clk 00:20:50]} {[%emt 00:14:32]} 21.
Qd2 {[%clk 00:36:09]} Kf8 {[%clk 00:11:36]} {[%emt 00:10:29]} 22. h5 {[%clk
00:31:24]} {[%emt 00:03:26]} d5 {[%clk 00:03:47]} {[%emt 00:08:19]} 23. hxg6
{[%clk 00:28:31]} {[%emt 00:03:23]} fxg6 {[%clk 00:01:53]} {[%emt 00:02:24]} 24.
Rf1+ {[%clk 00:23:36]} {[%emt 00:05:24]} Nf6 {[%clk 00:02:09]} {[%emt
00:00:15]} 25. Rh7 {[%clk 00:15:36]} {[%emt 00:08:30]} 1-0

[ePGN "0.1;DGT LiveChess/2.2.6"]

[Event "Régional Jeunes Occitanie 2024"]
[Site "L'Isle Jourdain, France"]
[Date "2024.02.24"]
[Round "7.1"]
[White "MORENO-CHABOT, Clement"]
[Black "TOUITOU-BOUCHY, Sylvain"]
[Result "1-0"]
[TimeControl "1h30 + 30s/cps"]
[WhiteElo "1771"]
[BlackElo "1517"]

1. e4 {[%clk 01:30:59]} {[%emt 00:00:42]} d5 {[%clk 01:23:31]} 2. exd5 {[%clk
01:31:21]} Nf6 {[%clk 01:23:56]} 3. Bb5+ {[%clk 01:31:49]} Nbd7 4. d4 {[%clk
01:31:17]} Nxd5 {[%clk 01:21:59]} 5. Nf3 {[%clk 01:31:30]} c6 {[%clk 01:19:12]}
6. Bd3 {[%clk 01:31:37]} e6 {[%clk 01:17:12]} 7. O-O {[%clk 01:29:54]} Be7
{[%clk 01:17:16]} 8. c4 {[%clk 01:28:52]} N5f6 {[%clk 01:17:09]} 9. b3 {[%clk
01:27:45]} c5 {[%clk 01:15:16]} 10. Bb2 {[%clk 01:22:09]} O-O {[%clk 01:10:55]}
11. Qe2 {[%clk 01:19:17]} b6 {[%clk 00:59:04]} 12. Rd1 {[%clk 01:18:39]} cxd4
{[%clk 00:55:55]} 13. Nxd4 {[%clk 01:16:41]} Bb7 {[%clk 00:55:56]} 14. Nf3
{[%clk 01:13:51]} Qc7 {[%clk 00:50:58]} 15. Nc3 {[%clk 01:11:32]} Rfd8 {[%clk
00:44:38]} 16. Nb5 {[%clk 01:02:09]} Qc6 {[%clk 00:38:43]} 17. Nbd4 {[%emt
00:02:19]} Qc8 {[%clk 00:36:11]} 18. Bc2 {[%clk 00:36:25]} {[%emt 00:19:09]} h6
{[%clk 00:31:58]} {[%emt 00:04:43]} 19. a3 {[%clk 00:32:09]} {[%emt 00:04:46]}
Re8 {[%clk 00:28:55]} {[%emt 00:09:35]} 20. Nb5 {[%clk 00:30:48]} Qc6 {[%clk
00:25:59]} 21. Nbd4 {[%clk 00:30:36]} Qc8 {[%clk 00:25:22]} {[%emt 00:01:03]}
22. b4 {[%clk 00:28:24]} {[%emt 00:07:49]} a6 {[%clk 00:25:00]} 23. Rac1 {[%clk
00:27:28]} Bf8 {[%clk 00:22:13]} {[%emt 00:00:28]} 24. Ne5 {[%clk 00:26:54]}
{[%emt 00:01:05]} Qc7 {[%clk 00:15:54]} {[%emt 00:06:49]} 25. Ndf3 {[%clk
00:26:19]} {[%emt 00:01:04]} Rad8 {[%clk 00:15:48]} {[%emt 00:00:36]} 26. Nxd7
{[%clk 00:19:52]} {[%emt 00:06:57]} Nxd7 {[%clk 00:15:57]} {[%emt 00:00:21]} 27.
Ba4 {[%clk 00:18:32]} {[%emt 00:01:50]} Bd6 {[%clk 00:11:14]} {[%emt 00:05:13]}
28. c5 {[%clk 00:17:40]} {[%emt 00:01:23]} Bf4 {[%clk 00:08:58]} {[%emt
00:06:30]} 29. c6 {[%clk 00:15:31]} Bxc1 {[%clk 00:05:18]} {[%emt 00:03:05]} 30.
cxd7 {[%clk 00:14:18]} {[%emt 00:05:14]} Rf8 {[%clk 00:03:54]} 31. Rxc1 {[%clk
00:14:26]} Qf4 {[%clk 00:03:19]} 32. Rd1 {[%clk 00:13:49]} {[%emt 00:00:57]} b5
{[%clk 00:02:45]} {[%emt 00:01:04]} 33. Bc2 {[%clk 00:13:14]} {[%emt 00:01:04]}
Bd5 {[%clk 00:02:08]} {[%emt 00:01:08]} 34. Ne5 {[%clk 00:10:40]} {[%emt
00:03:04]} Qg5 {[%clk 00:02:06]} {[%emt 00:00:32]} 35. Be4 {[%clk 00:09:13]}
{[%emt 00:01:57]} Bc4 {[%clk 00:01:19]} {[%emt 00:01:15]} 36. Nxc4 {[%clk
00:09:23]} {[%emt 00:00:23]} bxc4 {[%clk 00:01:39]} {[%emt 00:00:10]} 37. Qxc4
{[%clk 00:09:11]} {[%emt 00:00:41]} Qg4 {[%clk 00:01:14]} {[%emt 00:00:55]} 38.
Bh7+ {[%clk 00:09:40]} {[%emt 00:00:02]} 1-0

[Event "Régional Jeunes Occitanie 2024"]
[Site "L'Isle Jourdain, France"]
[Date "2024.02.24"]
[Round "7.4"]
[White "PIRES, Oscar"]
[Black "PIERROT, Yohann"]
[Result "1/2-1/2"]
[TimeControl "1h30 + 30s/cps"]
[WhiteElo "1829"]
[BlackElo "2053"]

1. d4 {[%clk 01:30:55]} {[%emt 00:01:09]} Nf6 {[%clk 01:30:57]} 2. Nf3 {[%clk
01:31:05]} g6 {[%clk 01:31:23]} 3. c4 {[%clk 01:31:19]} Bg7 {[%clk 01:31:50]} 4.
Nc3 {[%clk 01:31:40]} d5 {[%clk 01:32:18]} 5. e3 {[%clk 01:30:33]} O-O {[%clk
01:32:43]} 6. cxd5 {[%clk 01:29:40]} Nxd5 {[%clk 01:33:08]} 7. Bc4 {[%clk
01:29:51]} Nb6 {[%clk 01:33:35]} 8. Be2 {[%clk 01:29:52]} c5 {[%clk 01:33:03]}
9. O-O {[%clk 01:28:41]} cxd4 {[%clk 01:32:44]} 10. Nxd4 {[%clk 01:28:31]} Bd7
{[%clk 01:30:10]} 11. Bf3 {[%clk 01:16:00]} Nc6 {[%clk 01:30:12]} 12. Nxc6
{[%clk 01:15:36]} Bxc6 {[%clk 01:30:37]} 13. Bxc6 {[%clk 01:15:31]} bxc6 {[%clk
01:30:44]} 14. Qc2 {[%clk 01:10:28]} Rb8 {[%clk 01:22:21]} 15. b3 {[%clk
01:04:16]} Nd5 {[%clk 01:16:02]} 16. Bb2 {[%clk 00:53:16]} Nb4 {[%clk
01:12:58]} 17. Qb1 {[%clk 00:45:05]} Qd3 {[%clk 01:08:52]} 18. Rd1 {[%clk
00:43:32]} Qxb1 {[%clk 01:09:04]} 19. Raxb1 {[%clk 00:43:43]} Bxc3 {[%clk
01:08:54]} 20. Bxc3 {[%clk 00:44:04]} Nxa2 {[%clk 01:08:24]} 21. Be1 {[%clk
00:40:06]} Nb4 {[%clk 00:58:36]} 22. Rd7 {[%clk 00:38:33]} {[%emt 00:00:53]}
Nc2 {[%clk 00:56:34]} {[%emt 00:02:32]} 23. Rxa7 {[%clk 00:33:18]} {[%emt
00:05:45]} Nxe1 {[%clk 00:56:39]} {[%emt 00:00:25]} 24. Rxe1 {[%clk 00:33:45]}
{[%emt 00:00:03]} Rxb3 {[%clk 00:54:44]} {[%emt 00:02:25]} 25. Rxe7 {[%clk
00:33:14]} {[%emt 00:01:01]} Rc8 {[%clk 00:54:50]} {[%emt 00:00:24]} 26. Rc1
{[%clk 00:29:46]} {[%emt 00:03:58]} c5 {[%clk 00:54:17]} {[%emt 00:01:03]} 27.
Rd7 {[%clk 00:29:08]} {[%emt 00:02:29]} Rb2 {[%clk 00:52:20]} {[%emt 00:01:06]}
28. Rdd1 {[%clk 00:25:59]} {[%emt 00:03:38]} c4 {[%clk 00:50:51]} {[%emt
00:02:00]} 29. Rc3 {[%clk 00:25:46]} {[%emt 00:00:43]} Rb3 {[%clk 00:49:14]}
{[%emt 00:02:07]} 30. Rdc1 {[%clk 00:25:47]} {[%emt 00:00:29]} Rxc3 {[%clk
00:49:07]} {[%emt 00:00:38]} 31. Rxc3 {[%clk 00:26:14]} {[%emt 00:00:03]} Kf8
{[%clk 00:49:07]} {[%emt 00:00:30]} 32. Kf1 {[%clk 00:23:03]} {[%emt 00:08:21]}
Ke7 {[%clk 00:49:32]} 33. Ke2 {[%clk 00:22:10]} Kd6 {[%clk 00:49:12]} 34. Kd2
{[%clk 00:22:06]} Kc5 {[%clk 00:44:27]} {[%emt 00:03:27]} 35. Ra3 {[%clk
00:21:58]} {[%emt 00:05:25]} Rd8+ {[%clk 00:39:14]} {[%emt 00:00:55]} 36. Kc2
{[%clk 00:21:28]} {[%emt 00:01:00]} Rd6 {[%clk 00:37:39]} {[%emt 00:02:04]} 37.
Ra8 {[%clk 00:19:24]} {[%emt 00:02:34]} Rf6 {[%clk 00:37:56]} {[%emt 00:00:13]}
38. Rc8+ {[%clk 00:18:29]} {[%emt 00:01:26]} Kd5 {[%clk 00:37:14]} {[%emt
00:01:11]} 39. Rd8+ {[%clk 00:17:48]} {[%emt 00:01:11]} Kc5 {[%clk 00:37:36]}
{[%emt 00:00:08]} 1/2-1/2